bitfinex-derivatives/quotes_SOLF0:USTF0_20240927
["timestamp","ask_amount","ask_price","bid_price","bid_amount"]
[1727469413910,34.0,157.97,157.96,9.73]
[1727469415703,34.0,157.97,157.95,12.8947]
[1727469418201,34.0,157.97,157.96,3.1645]
[1727469418607,34.0,157.97,157.96,12.8945]
[1727469420715,34.0,157.97,157.87,75.44432971]
[1727469421107,37.1645,157.97,157.94,12.8948]
[1727469422414,9.73,157.96,157.87,75.44432971]
[1727469422612,9.73,157.95,157.87,75.44432971]
[1727469422809,9.73,157.95,157.89,9.73]
[1727469423316,3.1651,157.94,157.91,3.1655]
[1727469425209,3.1651,157.93,157.9,3.1656]
[1727469425416,3.1651,157.93,157.9,12.8956]
[1727469426022,3.165,157.94,157.91,3.1655]
[1727469427716,3.165,157.94,157.9,12.8956]
[1727469428911,3.165,157.94,157.91,3.1655]
[1727469429124,3.1648,157.95,157.9,9.73]
[1727469429329,3.1648,157.95,157.91,9.73]
[1727469429920,3.1648,157.95,157.92,3.1652]
[1727469432727,3.8394,157.96,157.89,3.09117346]
[1727469433029,34.0,157.97,157.94,9.73]
[1727469433828,34.0,157.97,157.95,3.1647]
[1727469434732,37.1643,157.97,157.94,12.8948]
[1727469438634,3.1645,157.96,157.93,3.1651]
[1727469438840,9.73,157.96,157.91,9.73]
[1727469440038,12.8946,157.96,157.93,3.1651]
[1727469442445,3.1647,157.95,157.92,3.1652]
[1727469444134,14.1943,157.96,157.93,3.1651]
[1727469445943,14.1943,157.96,157.92,9.73]
[1727469445944,1.2997,157.96,157.94,3.1649]
[1727469446136,34.0,157.97,157.94,9.73]
[1727469447144,34.0,157.97,157.95,3.1646]
[1727469447841,37.1643,157.97,157.94,12.8948]
[1727469452843,34.0,157.97,157.95,3.1647]
[1727469453933,37.1643,157.97,157.94,12.8948]
[1727469456342,3.165,157.94,157.91,12.8954]
[1727469456539,9.73,157.93,157.87,75.44432971]
[1727469456847,9.73,157.92,157.87,75.44432971]
[1727469457245,9.73,157.92,157.89,3.1658]
[1727469457643,9.73,157.92,157.87,75.44432971]
[1727469458749,9.73,157.92,157.89,3.1658]
[1727469460550,12.8952,157.93,157.9,3.1657]
[1727469467753,1.3468,157.95,157.89,9.73]
[1727469467948,9.73,157.94,157.89,9.73]
[1727469469859,3.1651,157.93,157.9,3.1657]
[1727469472352,12.8951,157.93,157.9,3.1657]
[1727469472658,3.1655,157.92,157.89,3.1658]
[1727469472862,9.73,157.91,157.86,9.73]
[1727469473055,9.73,157.91,157.87,3.1662]
[1727469473361,9.73,157.91,157.86,9.73]
[1727469474761,12.8956,157.91,157.88,3.1661]
[1727469479061,9.73,157.91,157.88,3.1661]
[1727469479557,9.73,157.91,157.89,3.1659]
[1727469480064,12.8953,157.93,157.89,9.73]
[1727469481164,12.8953,157.93,157.9,3.1657]
[1727469482877,3.1655,157.92,157.89,3.1658]
[1727469483076,12.8955,157.92,157.89,3.1658]
[1727469484886,3.1655,157.92,157.9,3.1657]
[1727469488588,12.8955,157.92,157.9,3.1657]
[1727469488886,12.8955,157.92,157.89,3.1658]
[1727469501886,9.73,157.92,157.9,3.1657]
[1727469502293,12.8953,157.92,157.9,3.1657]
[1727469502594,12.8953,157.92,157.89,3.1659]
[1727469512599,9.73,157.9,157.83,75.4744146]
[1727469512805,9.73,157.88,157.83,75.4744146]
[1727469512990,9.73,157.88,157.83,85.2044146]
[1727469513198,9.73,157.88,157.86,3.1664]
[1727469513707,9.73,157.88,157.84,9.73]
[1727469513897,12.8958,157.9,157.84,9.73]
[1727469514101,12.8958,157.9,157.85,9.73]
[1727469514809,12.8958,157.9,157.87,3.1663]
[1727469515303,3.1658,157.9,157.87,3.1663]
[1727469515901,1.3468,157.95,157.86,9.73]
[1727469516107,1.3468,157.95,157.83,75.4744146]
[1727469516108,1.3468,157.95,157.89,9.73]
[1727469516297,9.73,157.94,157.89,9.73]
[1727469516497,12.895,157.94,157.91,3.1655]
[1727469516696,12.895,157.94,157.83,75.4744146]
[1727469516697,1.3468,157.95,157.9,9.73]
[1727469516897,1.2781,157.96,157.93,9.73]
[1727469517197,34.0,157.97,157.93,9.73]
[1727469517397,34.0,157.97,157.94,3.1648]
[1727469521504,34.0,157.97,157.95,9.73]
[1727469522312,34.0,157.97,157.96,9.73]
[1727469522798,34.0,157.97,157.96,12.8945]
[1727469525113,34.0,157.97,157.96,3.1645]
[1727469525513,34.0,157.97,157.95,12.8947]
[1727469525996,34.0,157.97,157.95,3.1647]
[1727469527097,34.0,157.97,157.95,12.8947]
[1727469527302,34.0,157.97,157.96,3.1645]
[1727469534204,34.0,157.97,157.95,12.8946]
[1727469536620,34.0,157.97,157.96,3.1645]
[1727469539114,34.0,157.97,157.95,12.8946]
[1727469541021,34.0,157.97,157.96,9.73]
[1727469541207,34.0,157.97,157.96,12.8945]
[1727469545014,34.0,157.97,157.96,3.1645]
[1727469545211,34.0,157.97,157.96,12.8945]
[1727469547825,1.3323,158.05,158.02,3.1632]
[1727469548022,1.3323,158.05,158.02,12.8932]
[1727469550828,1.3323,158.05,158.03,3.1631]
[1727469554039,3.1624,158.07,158.04,12.8929]
[1727469554631,3.1624,158.07,158.03,12.893]
[1727469554832,3.1624,158.07,158.03,3.163]
[1727469555135,3.1624,158.07,158.03,12.893]
[1727469556330,3.1624,158.07,158.04,3.1629]
[1727469557740,9.73,158.08,158.05,12.8927]
[1727469557741,3.1622,158.08,158.05,12.8927]
[1727469557937,2.6993,158.09,158.05,9.73]
[1727469558536,5.8613,158.09,158.05,9.73]
[1727469558736,5.8613,158.09,158.06,9.73]
[1727469559937,5.8613,158.09,158.06,12.8925]
[1727469561128,3.1621,158.08,158.06,9.73]
[1727469562342,5.8612,158.09,158.06,12.8925]
[1727469565140,12.4293,158.09,158.03,3.24279984]
[1727469565342,12.4293,158.09,158.03,9.73]
[1727469565540,12.4293,158.09,158.03,12.96743857]
[1727469565741,3.1623,158.07,158.04,3.1628]
[1727469565935,3.1623,158.07,158.03,12.96743857]
[1727469566131,9.73,158.07,157.99,75.40548369]
[1727469566444,9.73,158.06,158.01,9.73]
[1727469566844,3.1627,158.05,158.02,3.1632]
[1727469570735,9.73,158.06,158.01,9.73]
[1727469570945,3.1629,158.04,158.01,12.8935]
[1727469571648,9.73,158.06,158.01,12.8935]
[1727469571649,3.1628,158.05,158.01,12.8935]
[1727469577953,3.1628,158.05,158.02,3.1633]
[1727469586761,9.73,158.06,158.01,12.8934]
[1727469588767,3.1629,158.05,158.01,12.8934]
[1727469591867,3.1629,158.05,158.02,3.1633]
[1727469605070,3.1626,158.06,158.02,3.1633]
[1727469605677,3.1626,158.06,158.03,3.1631]
[1727469607070,3.1627,158.05,158.02,3.1632]
[1727469607569,3.1629,158.04,158.02,3.1632]
[1727469608170,3.1628,158.05,158.02,3.1632]
[1727469609773,1.2789,158.08,158.03,9.73]
[1727469609974,1.2789,158.08,158.04,9.73]
[1727469610168,2.6993,158.09,158.06,9.73]
[1727469611276,9.73,158.11,158.06,9.73]
[1727469611675,3.162,158.09,158.06,12.8923]
[1727469611881,10.93954725,158.12,158.07,9.73]
[1727469612074,2.6072,158.13,158.11,9.73]
[1727469612379,9.73,158.12,158.0,5.75165594]
[1727469612573,9.73,158.12,158.07,9.73]
[1727469613068,3.1616,158.11,158.07,12.8922]
[1727469613676,9.73,158.12,158.07,12.8922]
[1727469613880,12.3372,158.13,158.08,12.8921]
[1727469614080,2.6072,158.13,158.09,9.73]
[1727469614483,5.7685,158.13,158.09,12.8919]
[1727469615583,5.7685,158.13,158.11,9.73]
[1727469615884,5.7685,158.13,158.09,3.1619]
[1727469616284,5.7685,158.13,158.1,9.73]
[1727469616473,5.7685,158.13,158.1,12.8917]
[1727469616676,10.9923,158.14,158.1,9.73]
[1727469616677,14.1533,158.14,158.1,9.73]
[1727469616874,66.47330394,158.15,158.11,9.73]
[1727469617190,66.47330394,158.15,158.12,9.73]
[1727469617191,3.1607,158.15,158.12,9.73]
[1727469617886,3.1606,158.16,158.13,3.1611]
[1727469618684,3.1606,158.16,158.12,12.8913]
[1727469619384,2.6948,158.17,158.13,12.891]
[1727469620086,3.1606,158.16,158.13,12.891]
[1727469620877,2.6948,158.17,158.14,9.73]
[1727469621388,2.6948,158.17,158.14,12.8909]
[1727469621389,5.8553,158.17,158.14,12.8909]
[1727469621584,5.8553,158.17,158.14,9.73]
[1727469622297,3.1606,158.16,158.14,9.73]
[1727469623294,3.1606,158.16,158.12,3.1612]
[1727469623490,3.1607,158.15,158.13,9.73]
[1727469623891,3.1605,158.16,158.13,9.73]
[1727469624186,2.6948,158.17,158.14,9.73]
[1727469624391,9.73,158.19,158.14,9.73]
[1727469624695,3.1604,158.17,158.14,12.8909]
[1727469625389,2.5607,158.21,158.16,9.73]
[1727469625690,2.5607,158.21,158.18,9.73]
[1727469625886,3.1599,158.19,158.17,9.73]
[1727469627491,3.1598,158.2,158.17,12.8903]
[1727469632286,2.5607,158.21,158.18,9.73]
[1727469632796,9.73,158.24,158.2,9.73]
[1727469633089,3.1597,158.2,158.15,75.32397785]
[1727469633293,9.73,158.22,158.18,9.73]
[1727469633490,9.73,158.19,158.15,9.73]
[1727469633994,9.73,158.19,158.12,3.20092821]
[1727469634192,9.73,158.17,158.12,9.73]
[1727469634593,3.1607,158.16,158.13,3.1611]
[1727469634990,9.73,158.17,158.12,9.73]
[1727469635201,2.555,158.22,158.11,9.73]
[1727469635202,9.73,158.16,158.11,9.73]
[1727469635900,3.1608,158.15,158.12,3.1613]
[1727469636394,3.1608,158.15,158.13,9.73]
[1727469638695,9.73,158.16,158.09,3.13228371]
[1727469639000,9.73,158.16,158.11,9.73]
[1727469639398,3.1611,158.14,158.11,9.73]
[1727469639897,3.1611,158.14,158.11,12.8915]
[1727469641192,3.1611,158.14,158.12,9.73]
[1727469642308,9.73,158.13,158.09,9.73]
[1727469642996,12.8913,158.13,158.09,12.8919]
[1727469644193,3.1613,158.13,158.09,12.8919]
[1727469646194,9.73,158.14,158.02,2.7309]
[1727469646395,9.73,158.12,158.02,2.7309]
[1727469646599,9.73,158.12,158.07,9.73]
[1727469647703,3.1619,158.1,158.07,9.73]
[1727469648299,3.1619,158.1,158.07,12.8923]
[1727469648795,2.7188,158.16,158.08,9.73]
[1727469649001,9.73,158.13,158.08,9.73]
[1727469650104,3.1614,158.12,158.08,12.892]
[1727469651305,12.8912,158.13,158.09,3.1619]
[1727469651700,12.8912,158.13,158.09,12.8919]
[1727469656015,12.8912,158.13,158.1,3.1617]
[1727469656614,9.73,158.12,158.07,9.73]
[1727469658022,12.8914,158.12,158.09,3.1619]
[1727469661533,2.7188,158.16,158.09,9.73]
[1727469661830,12.4488,158.16,158.11,9.73]
[1727469662226,2.7188,158.16,158.11,9.73]
[1727469662417,3.1608,158.15,158.12,3.1613]
[1727469662825,3.1608,158.15,158.12,12.8913]
[1727469664124,3.1609,158.14,158.12,12.8913]
[1727469665135,3.1609,158.14,158.12,3.1613]
[1727469665635,3.1611,158.13,158.09,9.73]
[1727469666036,3.1611,158.13,158.1,3.1616]
[1727469666531,3.1611,158.13,158.11,3.1615]
[1727469667239,3.161,158.14,158.11,12.8915]
[1727469668234,9.73,158.13,158.1,3.1616]
[1727469669933,3.1613,158.12,158.1,3.1616]
[1727469670335,3.1611,158.14,158.11,3.1615]
[1727469670929,3.1611,158.14,158.12,3.1613]
[1727469671439,3.1611,158.14,158.1,9.73]
[1727469671630,3.1611,158.14,158.11,3.1614]
[1727469671826,3.1611,158.14,158.1,9.73]
[1727469672236,3.1607,158.15,158.12,12.8911]
[1727469672440,12.4488,158.16,158.12,12.8911]
[1727469672941,3.1608,158.15,158.12,12.8911]
[1727469673141,12.4488,158.16,158.12,12.8911]
[1727469673338,66.44461141,158.21,158.14,3.1609]
[1727469673544,9.73,158.17,158.12,9.73]
[1727469673932,3.1608,158.15,158.12,12.8912]
[1727469674838,4.0439,158.2,158.13,9.73]
[1727469675037,4.0439,158.2,158.09,3.22522638]
[1727469675038,4.0439,158.2,158.16,9.73]
[1727469675444,3.1601,158.19,158.16,12.8904]
[1727469678839,3.1601,158.18,158.16,12.8904]
[1727469680042,4.0439,158.2,158.1,1.2603]
[1727469680043,9.73,158.19,158.1,1.2603]
[1727469680344,9.73,158.18,158.14,9.73]
[1727469680541,3.1604,158.17,158.14,12.8909]
[1727469681249,9.73,158.18,158.12,3.1612]
[1727469681441,9.73,158.18,158.13,9.73]
[1727469682350,3.1607,158.16,158.13,9.73]
[1727469684551,3.1604,158.17,158.15,9.73]
[1727469685452,3.1601,158.19,158.16,3.1605]
[1727469685652,3.1601,158.19,158.17,9.73]
[1727469686245,66.44461141,158.21,158.19,3.1599]
[1727469686444,9.73,158.24,158.19,9.73]
[1727469687844,3.1596,158.21,158.19,9.73]
[1727469690657,3.1597,158.2,158.19,9.73]
[1727469692062,9.73,158.24,158.19,12.8899]
[1727469692955,3.1594,158.22,158.19,12.8899]
[1727469693551,3.1595,158.21,158.19,12.8899]
[1727469694357,3.1595,158.21,158.19,9.73]
[1727469695157,3.1597,158.2,158.17,3.1602]
[1727469695359,3.1597,158.2,158.18,9.73]
[1727469696254,9.73,158.23,158.14,3.09907641]
[1727469696457,4.0903,158.25,158.08,6.3239]
[1727469696458,4.0903,158.25,158.17,9.73]
[1727469696660,9.73,158.22,158.17,9.73]
[1727469696965,3.1599,158.19,158.17,9.73]
[1727469700562,3.1601,158.18,158.17,9.73]
[1727469701064,9.73,158.22,158.14,3.1608]
[1727469701255,9.73,158.22,158.16,9.73]
[1727469702166,3.16,158.19,158.16,9.73]
[1727469706857,3.16,158.19,158.18,9.73]
[1727469707057,4.0903,158.25,158.13,3.11745873]
[1727469707261,4.0903,158.25,158.22,9.73]
[1727469707664,3.1593,158.23,158.22,9.73]
[1727469712978,9.73,158.23,158.19,9.73]
[1727469713775,3.1597,158.2,158.19,9.73]
[1727469717082,3.1602,158.18,158.15,3.1607]
[1727469717282,3.1602,158.18,158.09,68.28]
[1727469717283,9.73,158.19,158.12,3.09474601]
[1727469717476,3.1604,158.17,158.16,9.73]
[1727469720180,3.1604,158.17,158.13,3.1611]
[1727469720377,3.1605,158.16,158.15,9.73]
[1727469721495,3.1604,158.17,158.15,9.73]
[1727469729899,9.73,158.21,158.15,12.8906]
[1727469730202,9.73,158.24,158.19,9.73]
[1727469731289,4.0903,158.25,158.2,9.73]
[1727469731496,4.0903,158.25,158.21,9.73]
[1727469732894,3.1594,158.22,158.21,9.73]
[1727469737902,3.1592,158.23,158.21,9.73]
[1727469738393,3.159,158.24,158.22,9.73]
[1727469739399,66.42717247,158.26,158.22,9.73]
[1727469739400,3.1591,158.23,158.22,9.73]
[1727469746205,3.1591,158.23,158.2,3.1596]
[1727469746405,3.1591,158.23,158.22,9.73]
[1727469747610,66.42717247,158.26,158.22,9.73]
[1727469747906,66.42717247,158.26,158.24,9.73]
[1727469748614,3.1587,158.25,158.24,9.73]
[1727469748998,66.42717247,158.26,158.17,2.573]
[1727469749203,3.1591,158.23,158.22,9.73]
[1727469750407,3.1595,158.22,158.19,3.1599]
[1727469750618,3.1595,158.22,158.21,9.73]
[1727469751305,3.1596,158.21,158.18,3.16]
[1727469751503,3.1596,158.21,158.2,9.73]
[1727469754210,3.1594,158.22,158.2,9.73]
[1727469754416,3.1594,158.22,158.21,9.73]
[1727469757516,3.1592,158.23,158.21,9.73]
[1727469757715,3.1592,158.23,158.22,9.73]
[1727469762222,3.159,158.24,158.22,9.73]
[1727469762720,67.80437247,158.26,158.22,9.73]
[1727469762923,3.1587,158.25,158.24,9.73]
[1727469772630,69.58577247,158.26,158.24,9.73]
[1727469772828,69.58577247,158.26,158.25,9.73]
[1727469775934,3.1588,158.25,158.24,9.73]
[1727469781029,66.42717247,158.26,158.17,2.573]
[1727469781232,76.15717247,158.26,158.22,9.73]
[1727469781547,3.1591,158.23,158.22,9.73]
[1727469782032,66.42717247,158.26,158.22,9.73]
[1727469782340,66.42717247,158.26,158.17,2.573]
[1727469782341,3.1588,158.25,158.17,2.573]
[1727469782626,3.1588,158.25,158.24,9.73]
[1727469782829,3.1593,158.23,158.17,2.573]
[1727469783034,3.1593,158.23,158.22,9.73]
[1727469785833,9.73,158.25,158.16,3.11860872]
[1727469786023,9.73,158.25,158.19,9.73]
[1727469786440,9.73,158.24,158.19,9.73]
[1727469787330,3.1596,158.21,158.19,9.73]
[1727469789637,3.1596,158.21,158.18,3.16]
[1727469789831,3.1596,158.21,158.19,9.73]
[1727469803251,3.1597,158.2,158.18,3.16]
[1727469803445,3.1597,158.2,158.18,12.89]
[1727469810957,3.1597,158.2,158.18,9.73]
[1727469812249,3.1599,158.19,158.16,3.1604]
[1727469812448,3.1599,158.19,158.17,9.73]
[1727469812949,3.1597,158.2,158.17,3.1602]
[1727469813150,3.1597,158.2,158.17,12.8902]
[1727469813456,7.22138946,158.27,158.17,9.73]
[1727469813658,3.1596,158.21,158.18,3.16]
[1727469813854,9.73,158.23,158.18,9.73]
[1727469814358,3.1595,158.21,158.19,3.1599]
[1727469814554,9.73,158.23,158.19,3.1599]
[1727469814958,3.1595,158.22,158.19,3.1599]
[1727469818646,3.1596,158.21,158.19,3.1599]
[1727469820049,3.1596,158.21,158.14,3.14856185]
[1727469820050,3.1598,158.2,158.14,3.14856185]
[1727469820254,9.73,158.22,158.17,9.73]
[1727469820850,9.73,158.22,158.17,12.8902]
[1727469821855,3.1598,158.2,158.17,12.8902]
[1727469827174,9.73,158.2,158.14,3.13223879]
[1727469827468,12.8903,158.18,158.14,9.73]
[1727469827667,26.19138946,158.27,158.14,9.73]
[1727469827668,9.73,158.19,158.14,9.73]
[1727469828269,12.8901,158.19,158.16,3.1605]
[1727469828566,9.73,158.19,158.09,81.15614564]
[1727469828770,9.73,158.19,158.15,9.73]
[1727469829760,9.73,158.19,158.15,12.8906]
[1727469829761,3.1601,158.18,158.15,12.8906]
[1727469833475,3.1603,158.17,158.15,9.73]
[1727469834570,3.1602,158.18,158.15,12.8907]
[1727469835667,3.16,158.19,158.17,9.73]
[1727469835869,9.73,158.22,158.18,9.73]
[1727469836183,9.73,158.24,158.2,9.73]
[1727469836369,9.73,158.24,158.09,81.15614564]
[1727469836370,3.1589,158.24,158.22,9.73]
[1727469836876,13.7638,158.27,158.18,3.10323097]
[1727469836877,4.0338,158.27,158.18,3.10323097]
[1727469837067,4.0338,158.27,158.22,9.73]
[1727469837475,3.1587,158.26,158.24,9.73]
[1727469837974,7.1922,158.27,158.24,9.73]
[1727469839768,7.1922,158.27,158.24,12.8887]
[1727469844473,3.1585,158.26,158.23,3.159]
[1727469844680,3.1585,158.26,158.23,12.889]
[1727469845283,7.1922,158.27,158.24,3.1588]
[1727469846575,7.1922,158.27,158.25,9.73]
[1727469846780,5.8487,158.27,158.25,9.73]
[1727469853392,3.1585,158.26,158.24,12.8888]
[1727469854892,5.8487,158.27,158.24,12.8888]
[1727469861995,3.1586,158.26,158.24,9.73]
[1727469865195,5.8487,158.27,158.24,12.8889]
[1727469868002,3.1585,158.26,158.24,12.8889]
[1727469868299,66.41051176,158.29,158.25,12.8887]
[1727469868891,3.1582,158.28,158.25,12.8887]
[1727469877610,66.41051176,158.29,158.27,9.73]
[1727469877816,66.41051176,158.29,158.2,1.304]
[1727469877817,66.41051176,158.29,158.28,9.73]
[1727469878109,66.41051176,158.29,158.28,12.8881]
[1727469881411,3.1574,158.32,158.29,3.1579]
[1727469881714,3.1574,158.32,158.3,9.73]
[1727469884114,5.78685316,158.37,158.31,9.73]
[1727469884299,12.3189,158.37,158.33,9.73]
[1727469884906,3.1569,158.34,158.33,9.73]
[1727469889014,3.1569,158.35,158.33,9.73]
[1727469889405,68.96392947,158.37,158.33,9.73]
[1727469890911,3.1569,158.34,158.33,9.73]
[1727469891803,9.73,158.34,158.21,6.319]
[1727469892004,9.73,158.34,158.29,9.73]
[1727469893915,3.1574,158.32,158.29,12.8878]
[1727469894905,3.1571,158.34,158.29,9.73]
[1727469895109,3.1571,158.34,158.3,9.73]
[1727469895514,9.73,158.36,158.3,12.8876]
[1727469896109,68.96392947,158.37,158.31,12.8875]
[1727469896309,9.73,158.36,158.31,9.73]
[1727469896621,3.157,158.34,158.31,9.73]
[1727469898821,3.1571,158.33,158.31,9.73]
[1727469902115,3.1571,158.33,158.3,3.1576]
[1727469902323,3.1574,158.32,158.3,12.8876]
[1727469903823,3.1577,158.3,158.21,6.319]
[1727469904125,3.1577,158.3,158.27,9.73]
[1727469904324,3.1577,158.3,158.27,12.8882]
[1727469905727,3.158,158.29,158.27,12.8882]
[1727469906220,9.73,158.32,158.2,1.304]
[1727469906416,9.73,158.31,158.27,9.73]
[1727469907917,3.1579,158.3,158.27,12.8883]
[1727469909519,9.73,158.33,158.28,12.8881]
[1727469910925,3.1576,158.31,158.28,12.8881]
[1727469911628,9.73,158.35,158.3,9.73]
[1727469911821,9.73,158.35,158.31,9.73]
[1727469912225,3.157,158.34,158.31,12.8874]
[1727469916824,9.73,158.34,158.3,9.73]
[1727469917824,3.1574,158.32,158.3,9.73]
[1727469925230,3.1574,158.32,158.3,12.8877]
[1727469942848,9.73,158.32,158.21,6.34625342]
[1727469943149,9.73,158.32,158.26,9.73]
[1727469943352,3.1578,158.3,158.27,3.1582]
[1727469945157,3.1578,158.3,158.28,3.1581]
[1727469955066,3.1579,158.29,158.21,6.35385412]
[1727469955269,9.73,158.31,158.27,9.73]
[1727469955664,3.1578,158.3,158.28,3.1581]
[1727469955863,9.73,158.34,158.29,9.73]
[1727469956063,68.96392947,158.37,158.31,9.73]
[1727469956064,9.73,158.35,158.31,9.73]
[1727469956261,3.1568,158.35,158.32,9.73]
[1727469957061,3.1566,158.36,158.33,3.1571]
[1727469957369,78.69392947,158.37,158.27,3.15857685]
[1727469957370,66.37502947,158.37,158.35,9.73]
[1727469957776,66.37502947,158.37,158.35,12.8866]
[1727469959976,66.37502947,158.37,158.35,9.73]
[1727469960177,66.37502947,158.37,158.3,3.12536203]
[1727469960178,69.53142947,158.37,158.3,3.12536203]
[1727469960475,76.10502947,158.37,158.33,9.73]
[1727469960680,3.1567,158.36,158.33,12.887]
[1727469960879,66.37502947,158.37,158.34,9.73]
[1727469961674,69.53152947,158.37,158.34,12.8869]
[1727469962076,69.53152947,158.37,158.34,9.73]
[1727469963180,69.53152947,158.37,158.34,12.8869]
[1727469965967,66.37502947,158.37,158.28,5.75128141]
[1727469966171,76.10502947,158.37,158.32,9.73]
[1727469966771,3.1566,158.36,158.33,12.8871]
[1727469967774,3.1566,158.36,158.34,3.1569]
[1727469967969,69.53142947,158.37,158.34,12.8869]
[1727469981382,66.37502947,158.37,158.35,3.1567]
[1727469982180,66.37502947,158.37,158.36,9.73]
[1727469982390,3.9801,158.42,158.36,9.73]
[1727469982589,3.9801,158.42,158.4,9.73]
[1727469982789,3.1555,158.41,158.4,9.73]
[1727469983889,3.1555,158.41,158.37,3.1562]
[1727469984089,3.1555,158.41,158.34,75.24286164]
[1727469984090,9.73,158.41,158.34,75.24286164]
[1727469984282,9.73,158.41,158.37,9.73]
[1727469984593,12.413,158.42,158.37,9.73]
[1727469984891,12.413,158.42,158.38,9.73]
[1727469985287,3.1558,158.4,158.38,9.73]
[1727469989797,3.1559,158.39,158.38,9.73]
[1727469991894,12.413,158.42,158.36,3.1565]
[1727469991895,9.73,158.4,158.36,9.73]
[1727469992590,9.73,158.38,158.34,88.12976164]
[1727469992895,3.1565,158.37,158.34,88.12976164]
[1727469993596,9.73,158.38,158.34,75.24286164]
[1727469994295,2.683,158.42,158.34,88.12976164]
[1727469994502,3.1564,158.37,158.34,88.12976164]
[1727469994994,9.73,158.4,158.34,88.12976164]
[1727469995792,3.1565,158.36,158.34,88.12976164]
[1727469999006,9.73,158.39,158.34,75.24286164]
[1727469999195,9.73,158.39,158.34,84.97286164]
[1727469999398,9.73,158.38,158.34,84.97286164]
[1727470000089,3.1567,158.35,158.34,84.97286164]
[1727470001101,3.1566,158.36,158.34,84.97286164]
[1727470003603,9.73,158.38,158.34,84.97286164]
[1727470003806,9.73,158.38,158.28,5.75128141]
[1727470003807,9.73,158.38,158.32,12.8872]
[1727470004309,3.1569,158.35,158.32,12.8872]
[1727470005410,3.1569,158.35,158.33,3.1571]
[1727470010602,3.1566,158.36,158.34,3.1569]
[1727470011408,2.683,158.42,158.35,9.73]
[1727470011602,2.683,158.42,158.37,9.73]
[1727470011805,2.683,158.42,158.28,5.75128141]
[1727470011806,3.1557,158.41,158.39,9.73]
[1727470012405,5.8384,158.42,158.39,9.73]
[1727470013906,5.8384,158.42,158.39,12.8858]
[1727470014503,3.1555,158.41,158.39,12.8858]
[1727470014709,3.1555,158.41,158.39,9.73]
[1727470015506,3.13065776,158.53,158.4,9.73]
[1727470015804,9.73,158.46,158.4,9.73]
[1727470016011,3.1551,158.44,158.41,3.1553]
[1727470016213,3.8339,158.47,158.42,9.73]
[1727470016415,13.5639,158.47,158.42,9.73]
[1727470016602,3.1548,158.45,158.42,9.73]
[1727470018714,3.1548,158.45,158.3,6.3152]
[1727470018715,9.73,158.46,158.4,9.73]
[1727470018909,9.73,158.44,158.4,9.73]
[1727470019107,3.1554,158.42,158.4,9.73]
[1727470020725,9.73,158.41,158.28,5.75128141]
[1727470021019,9.73,158.41,158.37,9.73]